[Event "FIDE WWCC 2020"]
[Site "Shanghai"]
[Date "2020.01.12"]
[Round "6.1"]
[White "Ju, Wenjun"]
[Black "Goryachkina, Aleksandra"]
[Result "1/2-1/2"]
[ECO "C67"]
[WhiteElo "2584"]
[BlackElo "2578"]
[Annotator "ChessBase"]
[PlyCount "210"]
[EventDate "2020.01.05"]
[EventType "match"]
[EventCountry "CHN"]
[SourceTitle "playchess.com"]
[Source "ChessBase"]
[SourceQuality "1"]
[TimeControl "40/5400+30:1800+30"]

1. e4 {[%emt 0:00:00]} e5 {[%emt 0:00:00]} 2. Nf3 {[%emt 0:00:00]} Nc6 {[%emt 0:00:00]} 3. Bb5 {[%emt 0:00:00]} Nf6 {[%emt 0:00:11]} 4. O-O {[%emt 0:00:10]} Nxe4 {[%emt 0:00:47]} 5. Re1 {[%emt 0:00:11]} Nd6 {[%emt 0:00:17]} 6. Nxe5 {[%emt 0:00:12]} Be7 {[%emt 0:00:39]} 7. Bf1 {[%emt 0:00:09]} Nxe5 {[%emt 0:00:17]} 8. Rxe5 {[%emt 0:00:05]} O-O {[%emt 0:00:12]} 9. d4 {[%emt 0:00:10]} Bf6 {[%emt 0:00:31]} 10. Re1 {[%emt 0:00:10]} Re8 {[%emt 0:01:37]} 11. c3 {[%emt 0:00:15]} Rxe1 {[%emt 0:09:12]} 12. Qxe1 {[%emt 0:00:05]} Nf5 {[%emt 0:01:33]} 13. a4 {[%emt 0:00:48]} d5 {[%emt 0:04:33]} 14. a5 {[%emt 0:00:16]} Be7 {[%emt 0:02:57]} 15. Nd2 {[%emt 0:07:33]} Bd6 {[%emt 0:00:51]} 16. Nf3 {[%emt 0:03:39]} Ne7 {[%emt 0:05:33]} 17. b3 {[%emt 0:06:15]} Bf5 {[%emt 0:03:30]} 18. c4 {[%emt 0:04:26]} c6 {[%emt 0:05:54]} 19. Bb2 {[%emt 0:21:14]} a6 {[%emt 0:06:43]} 20. Ne5 {[%emt 0:06:54]} Qf8 {[%emt 0:02:34]} 21. Qc3 {[%emt 0:03:13]} Rd8 {[%emt 0:05:43]} 22. Nd3 {[%emt 0:02:34]} Ng6 {[%emt 0:03:08]} 23. g3 {[%emt 0:09:57]} Be4 {[%emt 0:06:54]} 24. Bg2 {[%emt 0:00:50]} Bxg2 {[%emt 0:03:34]} 25. Kxg2 {[%emt 0:00:04]} Ne7 {[%emt 0:00:52]} 26. c5 {[%emt 0:02:57]} Bc7 {[%emt 0:01:04]} 27. Qb4 {[%emt 0:00:57]} Rb8 {[%emt 0:00:19]} 28. Re1 {[%emt 0:11:59]} Qd8 {[%emt 0:00:40]} 29. Bc3 {[%emt 0:00:04]} Ng6 {[%emt 0:06:08]} 30. Qa3 {[%emt 0:08:06]} h5 {[%emt 0:06:44]} 31. f4 {[%emt 0:03:06]} Qf6 {[%emt 0:05:52]} 32. Qb2 {[%emt 0:00:23]} Nh4+ {[%emt 0:01:46]} 33. Kh1 {[%emt 0:00:41]} Nf5 {[%emt 0:01:12]} 34. Qe2 {[%emt 0:02:18]} Qg6 {[%emt 0:00:52]} 35. b4 {[%emt 0:00:39]} Rd8 {[%emt 0:01:32]} 36. Qf3 {[%emt 0:00:52]} f6 {[%emt 0:02:18]} 37. Qe2 {[%emt 0:01:02]} Kh7 {[%emt 0:01:01]} 38. Nf2 {[%emt 0:00:50]} Rd7 {[%emt 0:05:26]} 39. Qd3 {[%emt 0:00:05]} Re7 {[%emt 0:02:47]} 40. Rxe7 {[%emt 0:00:00]} Nxe7 {[%emt 0:00:00]} 41. Qxg6+ {[%emt 0:06:55]} Kxg6 {[%emt 0:00:23]} 42. Kg2 {[%emt 0:00:02]} h4 {[%emt 0:06:46]} 43. Kf3 {[%emt 0:00:08]} hxg3 {[%emt 0:01:39]} 44. hxg3 {[%emt 0:00:03]} f5 {[%emt 0:00:56]} 45. Nd1 {[%emt 0:09:17]} Kf6 {[%emt 0:05:24]} 46. Ne3 {[%emt 0:01:01]} Ng6 {[%emt 0:00:28]} 47. Be1 {[%emt 0:05:42]} Nf8 {[%emt 0:02:07]} 48. Nd1 {[%emt 0:02:03]} Ne6 {[%emt 0:00:23]} 49. Bf2 {[%emt 0:00:04]} g5 {[%emt 0:02:55]} 50. Be3 {[%emt 0:00:06]} Kg6 {[%emt 0:02:15]} 51. Nc3 {[%emt 0:00:09]} Bd8 {[%emt 0:00:43]} 52. Ne2 {[%emt 0:00:40]} Kh5 {[%emt 0:02:45]} 53. Bf2 {[%emt 0:06:05]} Bf6 {[%emt 0:01:12]} 54. Be3 {[%emt 0:00:03]} gxf4 {[%emt 0:04:01]} 55. gxf4 {[%emt 0:00:03]} Bh4 {[%emt 0:00:11]} 56. Ng3+ {[%emt 0:00:34]} Bxg3 {[%emt 0:03:01]} 57. Kxg3 {[%emt 0:00:02]} Ng7 {[%emt 0:00:25]} 58. Bc1 {[%emt 0:02:14]} Ne8 {[%emt 0:00:02]} 59. Bd2 {[%emt 0:00:33]} Nf6 {[%emt 0:00:02]} 60. Be1 {[%emt 0:00:16]} Ne4+ {[%emt 0:02:18]} 61. Kh3 {[%emt 0:00:31]} Kg6 {[%emt 0:00:10]} 62. Kg2 {[%emt 0:01:12]} Kh6 {[%emt 0:00:53]} 63. Kh2 {[%emt 0:00:55]} Nf6 {[%emt 0:00:09]} 64. Kh3 {[%emt 0:03:29]} Ne8 {[%emt 0:00:23]} 65. Kg3 {[%emt 0:00:42]} Kh5 {[%emt 0:00:01]} 66. Kh3 {[%emt 0:00:17]} Nc7 {[%emt 0:00:08]} 67. Bc3 {[%emt 0:00:13]} Ne6 {[%emt 0:00:52]} 68. Kg3 {[%emt 0:00:03]} Kg6 {[%emt 0:00:16]} 69. Kf3 {[%emt 0:00:19]} Ng7 {[%emt 0:00:06]} 70. Be1 {[%emt 0:00:36]} Kh6 {[%emt 0:00:17]} 71. Kg3 {[%emt 0:00:32]} Nh5+ {[%emt 0:00:31]} 72. Kh2 {[%emt 0:01:38]} Nf6 {[%emt 0:01:38]} 73. Bd2 {[%emt 0:00:37]} Ng4+ {[%emt 0:00:21]} 74. Kh3 {[%emt 0:00:53]} Kg6 {[%emt 0:01:09]} 75. Kg2 {[%emt 0:00:12]} Nf6 {[%emt 0:00:27]} 76. Kh2 {[%emt 0:00:25]} Nh5 {[%emt 0:01:47]} 77. Kh3 {[%emt 0:00:16]} Kh6 {[%emt 0:00:19]} 78. Kh2 {[%emt 0:00:22]} Ng7 {[%emt 0:00:36]} 79. Kg2 {[%emt 0:00:12]} Ne8 {[%emt 0:00:51]} 80. Kh3 {[%emt 0:00:39]} Kg6 {[%emt 0:00:36]} 81. Kg2 {[%emt 0:00:10]} Nc7 {[%emt 0:00:47]} 82. Bc3 {[%emt 0:00:06]} Ne6 {[%emt 0:00:13]} 83. Kg3 {[%emt 0:00:06]} Ng7 {[%emt 0:00:13]} 84. Kg2 {[%emt 0:00:44]} Nh5 {[%emt 0:00:16]} 85. Bd2 {[%emt 0:00:28]} Kh6 {[%emt 0:00:40]} 86. Kh2 {[%emt 0:00:26]} Nf6 {[%emt 0:00:12]} 87. Kg2 {[%emt 0:00:23]} Ng4 {[%emt 0:00:09]} 88. Kf3 {[%emt 0:00:37]} Kg6 {[%emt 0:00:54]} 89. Kg2 {[%emt 0:00:30]} Nh6 {[%emt 0:00:38]} 90. Kh2 {[%emt 0:00:39]} Kh5 {[%emt 0:00:58]} 91. Kh3 {[%emt 0:00:09]} Nf7 {[%emt 0:00:47]} 92. Kg3 {[%emt 0:00:40]} Nd8 {[%emt 0:00:19]} 93. Be1 {[%emt 0:00:39]} Ne6 {[%emt 0:00:18]} 94. Bc3 {[%emt 0:00:07]} Nf8 {[%emt 0:00:14]} 95. Kh3 {[%emt 0:01:09]} Kg6 {[%emt 0:00:06]} 96. Bd2 {[%emt 0:01:19]} Kh6 {[%emt 0:00:07]} 97. Kg2 {[%emt 0:00:55]} Ne6 {[%emt 0:01:06]} 98. Be3 {[%emt 0:00:05]} Kh5 {[%emt 0:00:02]} 99. Kg3 {[%emt 0:01:23]} Nc7 {[%emt 0:00:49]} 100. Bc1 {[%emt 0:00:35]} Ne8 {[%emt 0:00:05]} 101. Bd2 {[%emt 0:00:18]} Nf6 {[%emt 0:00:07]} 102. Kh3 {[%emt 0:00:30]} Kh6 {[%emt 0:00:16]} 103. Kh2 {[%emt 0:00:59]} Ng4+ {[%emt 0:00:20]} 104. Kg2 {[%emt 0:00:17]} Kg6 {[%emt 0:00:10]} 105. Kh3 {[%emt 0:01:00]} Nf6 {[%emt 0:01:00]} 1/2-1/2